Cogmind - Beta 15 @@@ ROGUE MODE // 2025.06.07 @ 19:15:02 Player: DZKane Result: Destroyed by Y-45 Defender with Heavy Assault Rifle Performance ------------- Evolutions (1) 500 Regions Visited (3) 600 Robots Destroyed (61) 305 Value Destroyed (1185) 1185 Prototype IDs (5) 100 Alien Tech Used (0) 0 Bonus (26) 26 TOTAL SCORE: 2716 Bonus ------- Follower Combat Kills 39 Friendly Fire -13 Cogmind --------- Core Integrity 0/400 Matter 260/300 Energy 177/265 System Corruption 0% Temperature Warm (130) Movement Hovering (66) Location -9/Materials Parts ------- > --- POWER (1) -------- Improved Ion Engine > --- PROPULSION (4) --- Improved Hover Unit Combat Airjet Combat Airjet > --- UTILITY (2) ------ Large Storage Unit > --- WEAPON (2) ------- Light Assault Rifle > --- INVENTORY (15) --- VTOL Module VTOL Module VTOL Module VTOL Module Improved Heat Sink Structural Scanner Seismic Detector Transport Network Coupler Improved Utility Shielding Improved Light Armor Plating Light Assault Rifle Grenade Launcher Rocket Launcher Mining Laser Plasma Cutter Peak State ------------ > --- POWER ------------ Heavy Ion Engine > --- PROPULSION ------- Improved Hover Unit Combat Airjet Combat Airjet > --- UTILITY ---------- Large Storage Unit Hacking Suite > --- WEAPON ----------- Light EM Pulse Cannon Light Assault Rifle > --- INVENTORY -------- Improved Ion Engine Improved Heat Sink Structural Scanner Seismic Detector Transport Network Coupler Improved Utility Shielding Improved Light Armor Plating Light Assault Rifle Grenade Launcher Rocket Launcher Mining Laser Plasma Cutter [Rating: 24] Favorites ----------- Power Ion Engine Engine Ion Engine Propulsion Light Treads Treads Light Treads Leg Aluminum Leg Hover Unit Combat Airjet Utility Large Storage Unit Device Heat Sink Storage Large Storage Unit Hackware Hacking Suite Protection Light Armor Plating Weapon Medium Laser Energy Gun Medium Laser Energy Cannon Light EM Pulse Cannon Ballistic Gun Light Assault Rifle Launcher Grenade Launcher Build | -11 -10 -10 -9 ------- Run | Yrd Mat Min Mat Slots Evolved 2 | . . . 2 Power . | . . . . Propulsion 2 | . . . 2 Utility . | . . . . Weapon . | . . . . Parts Attached 30 | 2 9 3 16 Power 4 | . . 1 3 Engine 4 | . . 1 3 Core . | . . . . Reactor . | . . . . Propulsion 10 | 2 . 1 7 Treads 4 | 2 . 1 1 Leg 3 | . . . 3 Wheel . | . . . . Hover 3 | . . . 3 Flight . | . . . . Utility 6 | . 4 1 1 Device 3 | . 3 . . Storage 1 | . 1 . . Processor . | . . . . Hackware 1 | . . . 1 Protection 1 | . . 1 . Artifact . | . . . . Weapon 10 | . 5 . 5 Energy Gun 4 | . 3 . 1 Energy Cannon 1 | . . . 1 Ballistic Gun 2 | . . . 2 Ballistic Cannon . | . . . . Launcher 3 | . 2 . 1 Special Weapon . | . . . . Impact Weapon . | . . . . Slashing Weapon . | . . . . Piercing Weapon . | . . . . Special Melee Weapon . | . . . . Unidentified Prototypes . | . . . . Parts Lost 11 | . 1 2 8 Power 1 | . . 1 . Propulsion 5 | . . 1 4 Utility 2 | . 1 . 1 Weapon 3 | . . . 3 Highest Loss Streak 2 | . 1 1 2 To Critical Strikes . | . . . . Average Backups 12 | 6 8 14 14 Power . | 1 1 1 . Propulsion 2 | 4 2 1 2 Utility 4 | . 1 5 5 Weapon 5 | 1 4 6 5 Tool/Special . | . . . . Unused Backups 23 | . 3 2 18 Power 2 | . . . 2 Propulsion 8 | . 1 1 6 Utility 9 | . 1 1 7 Weapon 3 | . 1 . 2 Tool/Special 1 | . . . 1 Average Slot Usage (%) 92 | . 98 99 80 Engine 12 | . 14 13 11 Treads 20 | . 28 27 6 Leg 5 | . . . 15 Hover 1 | . . . 3 Device 9 | . 11 13 2 Storage 13 | . 14 14 11 Hackware 2 | . . . 8 Energy Gun 23 | . 27 27 15 Ballistic Gun 1 | . . . 4 Peak Build Rating 24 | 6 8 9 24 Average Rating 10 | 6 7 8 14 On Entrance 7 | 6 6 8 9 Naked Turns . | . . . . Heaviest Build 34 | 13 34 32 34 Greatest Support 40 | 40 40 40 40 Greatest Overweight (x) 2 | . . 1 2 Average Overweight (x) . | . . . . Largest Inventory Capacity 15 | 8 15 15 15 Average Capacity 13 | 8 9 15 15 Most Carried 15 | 6 14 15 15 Average Carried 12 | 6 8 14 14 Final Capacity 15 | 8 15 15 15 Final Carried 15 | 6 14 15 15 Class Distribution -------------------- 84% | Mutant 15% | Scavenger-Mutant Dominant Class ---------------- Mutant | -10/Materials Mutant | -10/Mines Mutant | -9/Materials Resources | -11 -10 -10 -9 ----------- Run | Yrd Mat Min Mat Matter Collected 782 | 219 111 193 259 Remotely . | . . . . Salvage Created 1719 | . 575 360 784 Parts 90 | . 27 21 42 Haulers Intercepted 4 | . 2 . 2 Recyclers Shooed 4 | . 1 . 3 Parts Field Recycled . | . . . . Retrieved Matter . | . . . . Parts Self-Destructed . | . . . . Prevented . | . . . . Kills | -11 -10 -10 -9 ------- Run | Yrd Mat Min Mat Combat Hostiles Destroyed 41 | . 9 11 21 Guns 20 | . 5 3 12 AOE 16 | . 3 7 6 Classes Destroyed 12 | . 7 3 2 Worker 2 | . 1 1 . Builder 2 | . . 1 1 Tunneler 1 | . . 1 . Hauler 4 | . 2 . 2 Recycler 4 | . 1 2 1 Operator 3 | . 2 . 1 Watcher 3 | . 2 . 1 Swarmer 20 | . 3 8 9 Grunt 17 | . 6 3 8 Duelist 1 | . . . 1 Sentry 3 | . . . 3 Demolisher 1 | . . 1 . Best Kill Streak 5 | . 3 5 5 Combat Bots Only 4 | . 3 3 4 Max Kills in Single Turn 5 | . 3 5 2 Gunslinging . | . . . . Exploded 3 | . 3 3 2 Melee . | . . . . Uniques/NPCs Destroyed . | . . . . Combat | -11 -10 -10 -9 -------- Run | Yrd Mat Min Mat Hostile Shots Fired 192 | . 31 40 121 Missed 43 | . 8 8 27 Hits 149 | . 23 32 94 Melee 6 | . . . 6 Projectile 143 | . 23 32 88 AOE 4 | . . 4 . Critical Strikes 5 | . . . 5 Part Disruptions 1 | . . 1 . Damage Taken 1965 | . 254 514 1197 Core 510 | . 30 78 402 Absorbed by Shields . | . . . . Regen/Repaired (Parts) 70 | . . . 70 Core Remaining (%) 78 | 100 . 56 . Volleys Fired 148 | . 46 22 80 Largest 2 | . 2 2 2 Hottest 100 | . 100 100 100 Shots Fired 287 | . 92 41 154 Gun 261 | . 90 35 136 Cannon 13 | . . . 13 Launcher 13 | . 2 6 5 Special . | . . . . Kinetic 33 | . . . 33 Thermal 228 | . 90 35 103 Explosive 13 | . 2 6 5 Electromagnetic 13 | . . . 13 Robot Hit Streak 14 | . 11 14 12 Robot Miss Streak 4 | . 3 2 4 Penetration Max . | . . . . Secondary Targets 1 | . . . 1 Max Gunslinging Chain 1 | . . . 1 Shots Hit Robots 180 | . 58 23 99 Core Hits 99 | . 29 24 46 Critical Kills . | . . . . Critical Parts Destroyed . | . . . . Critical Strikes 19 | . 6 3 10 Burn 19 | . 6 3 10 Melee Attacks . | . . . . Impact . | . . . . Slashing . | . . . . Piercing . | . . . . Sneak Attacks . | . . . . Combat Hostiles . | . . . . Follow-up Attacks . | . . . . Damage Inflicted 3382 | . 855 829 1698 Guns 2099 | . 739 305 1055 Cannons 169 | . . . 169 Explosions 1112 | . 116 524 472 Melee . | . . . . Ramming 2 | . . . 2 Kinetic 175 | . . . 175 Thermal 1978 | . 739 305 934 Explosive 1058 | . 116 524 418 Electromagnetic 169 | . . . 169 Impact . | . . . . Slashing . | . . . . Piercing . | . . . . Highest Corruption . | . . . . Average Corruption . | . . . . Corruption Purged . | . . . . Corruption Blocked . | . . . . Overload Shots . | . . . . Overflow Damage 52 | . 20 24 8 Projectiles . | . . . . Explosions 52 | . 20 24 8 Melee . | . . . . Knockbacks 1 | . . . 1 Impact 1 | . . . 1 Kinetic . | . . . . Secondary . | . . . . Self-Inflicted Damage 47 | . . 47 . Shots 3 | . . 3 . Rammed . | . . . . Targets Rammed 1 | . . . 1 Kicked 1 | . . . 1 Crushed . | . . . . Highest Temperature 372 | . 242 117 372 Average Temperature 72 | . 56 40 89 Received Heat Transfer 645 | . 129 117 399 Siege Activations . | . . . . Martial Activations . | . . . . Shielding Activations . | . . . . Robots Disrupted . | . . . . Combat Hostiles . | . . . . Robots Corrupted 1 | . . . 1 Combat Hostiles 1 | . . . 1 Parts Fried 2 | . . . 2 Impact Corruptions . | . . . . Robots Melted 5 | . 1 1 3 Combat Hostiles 4 | . 1 1 2 Parts Melted 19 | . 5 4 10 Heat Transferred 7006 | . 2590 1110 3306 Parts Sabotaged . | . . . . Parts Stolen . | . . . . Parts Stripped . | . . . . Power Chain Reactions 1 | . . . 1 Alert | -11 -10 -10 -9 ------- Run | Yrd Mat Min Mat Maximum Alert Level 1 | . . . 1 Low Security (%) 81 | 100 100 100 45 Level 1 18 | . . . 54 Level 2 . | . . . . Level 3 . | . . . . Level 4 . | . . . . Level 5 . | . . . . High Security . | . . . . Max Security . | . . . . Peak Influence 279 | . 126 167 279 Initial 33 | . . 6 33 Average 96 | . 42 51 193 Influence Increases 1423 | . 300 413 710 Destroy 0b10 Robot/C 840 | . 180 240 420 Destroy 0b10 Robot/NC 95 | . 40 25 30 Destroy Leader 204 | . 58 50 96 Allied During Kill 3 | . . 3 . Successful Hack 27 | . 5 . 22 Disable Machine 30 | . . 15 15 Destroy Structure 89 | . 17 20 52 Lose Combat Pursuer 135 | . . 60 75 Influence Decreases 1224 | . 284 341 599 Entered New Map 65 | . . 10 55 Time Decay 1039 | . 274 301 464 Lost Part 100 | . 10 10 80 Lost Ally 20 | . . 20 . Squads Dispatched 5 | . 2 . 3 Investigation 1 | . . . 1 Extermination . | . . . . Reinforcement 4 | . 2 . 2 Assault . | . . . . Garrison . | . . . . Intercept . | . . . . Searches Triggered . | . . . . Construction Impeded . | . . . . Haulers Reinforced . | . . . . Active Scanning Responses . | . . . . Cargo Convoy Interrupts . | . . . . Stealth | -11 -10 -10 -9 --------- Run | Yrd Mat Min Mat Distress Signals 4 | . 1 . 3 Communications Jammed . | . . . . Distress Signals . | . . . . Times Spotted 84 | . 20 28 36 Peak Tracking Total 12 | . 5 12 5 Tactical Retreats 7 | . . 3 4 Traps | -11 -10 -10 -9 ------- Run | Yrd Mat Min Mat Traps Triggered . | . . . . Indirectly . | . . . . Trap Hack Attempts . | . . . . Triggered . | . . . . Disarmed . | . . . . Reprogrammed . | . . . . Reused . | . . . . Traps Extracted . | . . . . Installed . | . . . . Triggered . | . . . . Machines | -11 -10 -10 -9 ---------- Run | Yrd Mat Min Mat Machines Disabled 2 | . . 1 1 Max in Single Turn 1 | . . 1 1 Machines Repaired . | . . . . Machines Dismantled . | . . . . Machines Sabotaged . | . . . . Overloaded Fab Kills . | . . . . Hacking | -11 -10 -10 -9 --------- Run | Yrd Mat Min Mat Machines Accessed 11 | . 7 . 4 Terminals 8 | . 6 . 2 Fabricators . | . . . . Repair Stations 1 | . . . 1 Recycling Units 1 | . 1 . . Scanalyzers 1 | . . . 1 Garrison Access . | . . . . Total Hacks 37 | . 20 . 17 Successful 16 | . 4 . 12 Failed 21 | . 16 . 5 Catastrophic 1 | . 1 . . Database Lockouts . | . . . . Manual 8 | . 8 . . Terminals 23 | . 19 . 4 Fabricators . | . . . . Repair Stations 6 | . . . 6 Recycling Units 1 | . 1 . . Scanalyzers 7 | . . . 7 Garrison Access . | . . . . Terminal Hacks 4 | . 3 . 1 Robot Analysis 1 | . 1 . . Prototype ID Bank 2 | . 2 . . Branch Access Points 1 | . . . 1 Fabricator Hacks . | . . . . Repair Station Hacks 4 | . . . 4 Scan Component 2 | . . . 2 Repair 2 | . . . 2 Recycling Unit Hacks 1 | . 1 . . Retrieve Components 1 | . 1 . . Scanalyzer 7 | . . . 7 Insert Component 4 | . . . 4 Analyze 3 | . . . 3 Garrison Access Hacks . | . . . . Unauthorized Hacks . | . . . . Terminals . | . . . . Fabricators . | . . . . Repair Stations . | . . . . Recycling Units . | . . . . Scanalyzers . | . . . . Garrison Access . | . . . . Data Cores Recovered . | . . . . Used . | . . . . Hacking Detections 11 | . 7 . 4 Full Trace Events 1 | . . . 1 Feedback Events . | . . . . Feedback Blocked . | . . . . Robot Schematics Acquired . | . . . . Robots Built . | . . . . Authchips . | . . . . Time . | . . . . Total Robot Build Rating . | . . . . Part Schematics Acquired 3 | . . . 3 Parts Built . | . . . . Authchips . | . . . . Time . | . . . . Total Part Build Rating . | . . . . Parts Repaired 2 | . . . 2 Time 100 | . . . 100 Parts Recycled . | . . . . Recycled Matter . | . . . . Retrieved Matter . | . . . . Retrieved Components 9 | . 9 . . Parts Scanalyzed 3 | . . . 3 Part Schematics Acquired 3 | . . . 3 Parts Damaged . | . . . . Bothacking | -11 -10 -10 -9 ------------ Run | Yrd Mat Min Mat Used RIF Installer . | . . . . Robots Hacked . | . . . . Non-combat . | . . . . Combat . | . . . . Robot Hacks Applied . | . . . . Relay Couplers Released . | . . . . Fabnet Peak Effective % . | . . . . Robots Rewired . | . . . . Allies Hacked . | . . . . Hacks Repelled . | . . . . Allies | -11 -10 -10 -9 -------- Run | Yrd Mat Min Mat Total Allies 3 | . . 3 . Largest Group 3 | . . 3 . Highest-Rated Group 40 | . . 40 . Highest-Rated Ally 16 | . . 16 . Total Orders . | . . . . Ally Attacks 10 | . . 10 . Total Damage 73 | . . 73 . Kills 1 | . . 1 . Allies Corrupted . | . . . . Allies Melted . | . . . . Intel | -11 -10 -10 -9 ------- Run | Yrd Mat Min Mat Active Infowar (turns) 975 | . 290 393 292 Structural 975 | . 290 393 292 Robot Analysis Total 1 | . 1 . . Derelict Logs Recovered 1 | . . 1 . Drone Launches . | . . . . Drone Recoveries . | . . . . Exploration | -11 -10 -10 -9 ------------- Run | Yrd Mat Min Mat Turns Passed 3460 | 7 978 1308 1167 Spaces Moved 1397 | 3 450 558 386 Core . | . . . . Treads 1179 | 3 450 558 168 Legs 170 | . . . 170 Wheels . | . . . . Hover 48 | . . . 48 Flight . | . . . . Fastest Speed 120 | 160 160 160 120 Average Speed 166 | 160 160 160 180 Slowest Speed 260 | 160 160 240 260 Overloaded Moves . | . . . . Propulsion Burnouts . | . . . . Robots Hopped . | . . . . Potential Cave-ins . | . . . . Cave-ins Triggered . | . . . . Exploration Rate (%) 46 | 2 80 73 29 Regions Visited 3 Branch Regions 1 Pre-discovered Areas . | . . . . Known Exits Taken . | . . . . Unknown Exits Taken 3 | 1 1 1 . Scrap Searched 1 | . . 1 . Spaces Dug 25 | . . 11 14 Terrain Destroyed 97 | . 15 20 62 Melee . | . . . . Projectile . | . . . . AOE 97 | . 15 20 62 Terrain Rammed . | . . . . Walls Destroyed . | . . . . Machines Disabled . | . . . . Actions | -11 -10 -10 -9 --------- Run | Yrd Mat Min Mat Total 2256 | 4 617 925 710 Wait 596 | . 86 321 189 Move 1394 | 2 449 557 386 Hop . | . . . . Pick Up 39 | . 15 7 17 Fast Attach 12 | . 5 . 7 Attach 8 | . 1 2 5 Detach 1 | . 1 . . Swap 28 | 2 4 12 10 Drop 29 | . 10 4 15 Fire 148 | . 46 22 80 Melee . | . . . . Ram . | . . . . Kick 1 | . . . 1 Crush . | . . . . Escape Stasis . | . . . . Rewire . | . . . . Trap . | . . . . Miscellaneous . | . . . . Route ------- -11/Scrapyard -10/Materials (discovered 4 exits: *Mat x2 / [*Min] / [*Sub]) -10/Mines -9/Materials (discovered 4 exits: Mat x2 / Min x2) History --------- Turn | Location | Event 4 | -11/Scrapyard | Discovered new exit (range 1) 8 | -11/Scrapyard | Entered Materials 318 | -10/Materials | Build established: Mutant 432 | -10/Materials | Discovered new exit (range 16) 518 | -10/Materials | Discovered new exit (range 14) 841 | -10/Materials | Discovered new exit (range 9) 976 | -10/Materials | Discovered new exit (range 7) 986 | -10/Materials | Entered Mines 1017 | -10/Mines | Learned 8 Materials zone layouts 1068 | -10/Mines | Discovered new exit (range 12) 1408 | -10/Mines | Assembled infested the area 1413 | -10/Mines | Assisted by a Guerilla fighting off Assembled 1443 | -10/Mines | Received a Rocket Launcher from a helpful Derelict 1624 | -10/Mines | Assisted by bots powering up and referring to "LRC-V3" 2294 | -10/Mines | Entered Materials 2294 | -9/Materials | Evolved 2 slots: Propulsion x2 2295 | -9/Materials | Identified exit to Materials 2402 | -9/Materials | Identified exit to Mines 2996 | -9/Materials | Repaired Cmb. Airjet 3107 | -9/Materials | Repaired Cmb. Airjet 3266 | -9/Materials | Core integrity fell below 50% 3282 | -9/Materials | Core integrity fell below 20% 3311 | -9/Materials | Build established: Scavenger-Mutant 3461 | -9/Materials | Destroyed by Y-45 Defender with Heavy Assault Rifle Last Messages --------------- 03366_ Acquired VTOL Module. 03391_ Connecting with Terminal... 03416_ ALERT: Hostiles spotted, dispatching reinforcements to Terminal M002. 03425_ Chain reaction triggered in Imp. Ion Engine. 03432_ Y-45 Defender IFF system glitched. 03435_ Y-45 Defender misfires. 03437_ U-05 Engineer lays Concrete. 03439_ U-05 Engineer builds a Door. 03443_ U-05 Engineer lays Concrete. 03445_ U-05 Engineer builds a Wall. 03446_ Y-45 Defender system terminally corrupted. 03446_ Beam Rifle fried. 03446_ Lgt. Armor Plating fried. 03449_ Critical hit (Burn: +37). 03456_ Terminal disabled. 03458_ Hacking Suite destroyed. 03461_ Lgt. EM Pulse Cannon destroyed. Map ----- +----------------------------------------------------+ | | | | | | | | | | | | | | | | | | | | | | | | | | | ?????????###########?????????????????????????????? | | ###??????#! ! #?????????????????????????????? | | #??????# #?????????????????????????????? | | ######## #?????????????????????????????? | | + #?????????????????###?????????? | | ######## #????????????????# #?????????? | | #??????# #????????????????# #?????????? | | #####????# #????????????????+ #?????????? | | #????# %% #????????????????# #?????????? | | ]] #????#####+#####???????????????## ##???>????? | | ]!! #??????# !=#######+#########;;; #????????? | | ]! #??????# =Y #????????? | | #??????# @ %= #????????? | | #??????# [ #######+#########+#" #????????? | | #####??????######???# ## ##+###????????? | | ??????????????????# ## # "??????????? | | ??????????????????# = ## #! "??????????? | | ??????????????????#%! =* ## # ?????????? | | ??????????????????#[ ## "T" # !! ?????????? | | ?????????????????# = ## """ # !! ????????? | | ?????????????????########## # !! ????????? | | ##??????????????????????????########### ##???????? | | ?????????????????????????????????????##????????? | | ???????????????????????????????????????????????? | | ???????????????????????????????????????????????? | | ?? #???# #???????# """ + #?? | | ??######???# #???????# # #?? | | ?????####### #???????# """ # ## #?? | | ?????# # #???????# """ # ########?? | | ?????# # #???????# """ # #????????? | | ?????# ## ############## # ########?? | | ??#### ## # # " # # #?? | | ?? ## ## + """ """ # T # # """ #?? | | ?? ## ## # """ """ # " # # """ #?? | | ?? ## ## # """ """ # # + """ #?? | | ?? ## ## # ##### ## # #?? | | ?? ## + ##############???#### # #?? | +----------------------------------------------------+ Best States ------------- Heat Dissipation 35 Energy Generation 14 Energy Capacity 280 Matter Stores 300 Matter Capacity 300 Sight Range 16 Terrain Scan Density 10 Armor Coverage 150 Evasion (%) 40 Recoil Reduction 2 Offensive Hacking 10 Item Schematics ----------------- Cmb. Airjet | -9/Materials | Scanalyzed Imp. Light Armor Plating | -9/Materials | Scanalyzed Imp. Utility Shielding | -9/Materials | Scanalyzed Robot Schematics ------------------ None Fabricated ------------ Nothing Repaired ---------- Cmb. Airjet | 69% | -9/Materials Cmb. Airjet | 76% | -9/Materials Alien Tech Used ----------------- None Achievements -------------- None Challenges ------------ None Game ------ Seed VoltaicAlloyCleaver Manual? 0 Play Time 00:22:18 Cumulative 233.5 hours Start 2025.06.07 @ 18:53:43 End 2025.06.07 @ 19:15:02 Sessions 1 Manual Loads 0 Difficulty Rogue Special Mode None Game No. 140 Rogue 140 Adventurer 0 Explorer 0 Win Type - Total 10 Types 10/0/0/0/0/0/0/0/0/0 Lore% 68 Gallery% 67 Achievement% 61 Wizard Run 0 Options --------- Layout 1 ASCII 0 Keyboard 0 Movement Numpad Keybinds 0 Fullscreen 1 Font 24/Smallcaps Map View 50x35 Zoom Use 0% Tactical HUD 1 Map Filters NONE Filters NONE Steam 1 RUN: 0e087e1c-ed58-4097-84d4-bc29b899ce88